Cogmind - Beta 15 @@@ ROGUE MODE // 2025.07.14 @ 17:01:50 Player: beans Result: Destroyed self with YOLO Cannon Performance ------------- Evolutions (0) 0 Regions Visited (4) 800 Robots Destroyed (28) 140 Value Destroyed (613) 613 Prototype IDs (23) 460 Alien Tech Used (0) 0 Bonus (300) 300 TOTAL SCORE: 2313 Bonus ------- Aligned with FarCom 300 Cogmind --------- Core Integrity 0/250 Matter 279/300 Energy 180/250 System Corruption 4% Temperature Cool (20) Movement Rolling (115) Ox1 Location -9/Mines Parts ------- > --- POWER (1) -------- Ion Engine > --- PROPULSION (2) --- Compact Wheel > --- UTILITY (2) ------ Improved Heat Sink Visual Processing Unit > --- WEAPON (2) ------- YOLO Cannon > --- INVENTORY (5) ---- Ion Engine Salvage Targeting Computer Targeting Computer Targeting Computer Heavy EM Pulse Gun Peak State ------------ > --- POWER ------------ Ion Engine > --- PROPULSION ------- Compact Wheel > --- UTILITY ---------- Improved Heat Sink Visual Processing Unit > --- WEAPON ----------- YOLO Cannon > --- INVENTORY -------- Salvage Targeting Computer Targeting Computer Targeting Computer [Rating: 27] Favorites ----------- Power Ion Engine Engine Ion Engine Propulsion Light Treads Treads Light Treads Wheel Compact Wheel Utility Improved Heat Sink Device Improved Heat Sink Processor Visual Processing Unit Weapon Heavy EM Pulse Gun Energy Gun Heavy EM Pulse Gun Energy Cannon YOLO Cannon Build | -11 -10 -10 -10 -9 ------- Run | Yrd Mat Min Exi Min Slots Evolved . | . . . . . Power . | . . . . . Propulsion . | . . . . . Utility . | . . . . . Weapon . | . . . . . Parts Attached 15 | 5 8 1 1 . Power 3 | 1 2 . . . Engine 3 | 1 2 . . . Core . | . . . . . Reactor . | . . . . . Propulsion 3 | 2 1 . . . Treads 2 | 2 . . . . Leg . | . . . . . Wheel 1 | . 1 . . . Hover . | . . . . . Flight . | . . . . . Utility 2 | . 2 . . . Device 1 | . 1 . . . Storage . | . . . . . Processor 1 | . 1 . . . Hackware . | . . . . . Protection . | . . . . . Artifact . | . . . . . Weapon 7 | 2 3 1 1 . Energy Gun 6 | 2 3 1 . . Energy Cannon 1 | . . . 1 . Ballistic Gun . | . . . . . Ballistic Cannon . | . . . . . Launcher . | . . . . . Special Weapon . | . . . . . Impact Weapon . | . . . . . Slashing Weapon . | . . . . . Piercing Weapon . | . . . . . Special Melee Weapon . | . . . . . Unidentified Prototypes . | . . . . . Corrupted Parts 2 | . 2 . . . System Corruption 4 | . 4 . . . Parts Lost 8 | . 6 2 . . Power 1 | . 1 . . . Propulsion 2 | . 2 . . . Utility . | . . . . . Weapon 5 | . 3 2 . . Highest Loss Streak 3 | . 3 2 . . To Critical Strikes . | . . . . . Average Backups 2 | 1 2 4 4 . Power . | . . 1 1 . Propulsion . | . . . . . Utility 1 | . 1 3 3 . Weapon . | . . . . . Tool/Special . | . . . . . Unused Backups 4 | . . . . 4 Power 1 | . . . . 1 Propulsion . | . . . . . Utility 3 | . . . . 3 Weapon . | . . . . . Tool/Special . | . . . . . Average Slot Usage (%) 74 | . 74 81 70 . Engine 9 | . 8 14 14 . Treads 13 | . 19 . . . Wheel 5 | . 1 14 14 . Device 12 | . 12 14 14 . Processor 7 | . 4 14 14 . Energy Gun 22 | . 26 24 6 . Energy Cannon 1 | . . . 7 . Peak Build Rating 27 | 5 12 11 27 . Average Rating 10 | 3 8 10 18 . On Entrance 10 | . 5 11 9 27 Naked Turns . | . . . . . Heaviest Build 24 | 7 12 12 24 . Greatest Support 40 | 40 40 16 16 . Greatest Overweight (x) 3 | . 3 . 1 . Average Overweight (x) . | . . . . . Largest Inventory Capacity 5 | 5 5 5 5 . Average Capacity 5 | 5 5 5 5 . Most Carried 5 | 5 5 5 5 . Average Carried 2 | 1 2 4 4 . Final Capacity 5 | 5 5 5 5 5 Final Carried 5 | 1 5 4 5 5 Class Distribution -------------------- 63% | Mutant 36% | Scavenger-Mutant Dominant Class ---------------- Mutant | -10/Materials Scavenger-Mutant | -10/Mines Scavenger-Mutant | -10/Exiles Scavenger-Mutant | -9/Mines Resources | -11 -10 -10 -10 -9 ----------- Run | Yrd Mat Min Exi Min Matter Collected 347 | 242 100 5 . . Remotely . | . . . . . Salvage Created 1105 | 118 870 94 . 23 Parts 60 | 6 47 4 . 3 Haulers Intercepted . | . . . . . Recyclers Shooed 2 | . 2 . . . Parts Field Recycled . | . . . . . Retrieved Matter . | . . . . . Parts Self-Destructed . | . . . . . Prevented . | . . . . . Kills | -11 -10 -10 -10 -9 ------- Run | Yrd Mat Min Exi Min Combat Hostiles Destroyed 17 | . 13 2 . 2 Guns 13 | . 11 2 . . AOE 4 | . 2 . . 2 Classes Destroyed 7 | 2 5 . . . Worker 2 | . 2 . . . Builder 1 | . 1 . . . Tunneler 1 | 1 . . . . Recycler 4 | 1 3 . . . Watcher 3 | . 3 . . . Swarmer 5 | . 3 . . 2 Grunt 12 | . 10 2 . . Best Kill Streak 4 | 2 4 2 . 2 Combat Bots Only 3 | . 3 2 . 2 Max Kills in Single Turn 2 | 1 2 1 . 2 Gunslinging 1 | . 1 . . . Exploded 2 | . 1 . . 2 Melee . | . . . . . Uniques/NPCs Destroyed . | . . . . . Combat | -11 -10 -10 -10 -9 -------- Run | Yrd Mat Min Exi Min Hostile Shots Fired 87 | . 77 10 . . Missed 23 | . 23 . . . Hits 64 | . 54 10 . . Projectile 64 | . 54 10 . . Critical Strikes 2 | . 2 . . . Damage Taken 976 | . 788 137 . 51 Core 299 | . 167 81 . 51 Absorbed by Shields . | . . . . . Core Remaining (%) 100 | 100 . . . . Volleys Fired 85 | 4 73 7 . 1 Largest 2 | 2 2 2 . 1 Hottest 100 | 90 90 90 . 100 Shots Fired 140 | 8 119 12 . 1 Gun 139 | 8 119 12 . . Cannon 1 | . . . . 1 Launcher . | . . . . . Special . | . . . . . Kinetic . | . . . . . Thermal 30 | 4 25 . . 1 Explosive . | . . . . . Electromagnetic 110 | 4 94 12 . . Robot Hit Streak 8 | 4 8 8 . . Robot Miss Streak 3 | 1 3 2 . 1 Penetration Max . | . . . . . Secondary Targets 3 | . 2 1 . . Max Gunslinging Chain 1 | . 1 1 . . Shots Hit Robots 72 | 6 57 9 . . Core Hits 34 | 3 26 3 . 2 Critical Kills . | . . . . . Critical Parts Destroyed . | . . . . . Critical Strikes 3 | 1 2 . . . Burn 2 | 1 1 . . . Corrupt 1 | . 1 . . . Melee Attacks . | . . . . . Impact . | . . . . . Slashing . | . . . . . Piercing . | . . . . . Sneak Attacks . | . . . . . Combat Hostiles . | . . . . . Follow-up Attacks . | . . . . . Damage Inflicted 1436 | 75 1016 145 . 200 Guns 1071 | 75 851 145 . . Cannons . | . . . . . Explosions 365 | . 165 . . 200 Melee . | . . . . . Ramming . | . . . . . Kinetic . | . . . . . Thermal 541 | 38 303 . . 200 Explosive . | . . . . . Electromagnetic 895 | 37 713 145 . . Impact . | . . . . . Slashing . | . . . . . Piercing . | . . . . . Highest Corruption 4 | . 4 4 4 . Average Corruption 2 | . 2 4 4 . Corruption Purged . | . . . . . Corruption Blocked . | . . . . . Effects 25 | . 16 5 4 . Message Errors 9 | . 4 4 1 . Matter Fused 5 | . 3 1 1 . Heat Flow Errors 1 | . 1 . . . Energy Discharges 1 | . 1 . . . Parts Rejected 1 | . 1 . . . Data Loss (minor) 3 | . 3 . . . Data Loss (major) 2 | . 1 . 1 . Misfires 1 | . 1 . . . Alerts 1 | . . . 1 . Weapon Failures 1 | . 1 . . . Overload Shots . | . . . . . Overflow Damage 47 | . 3 . . 44 Projectiles . | . . . . . Explosions 47 | . 3 . . 44 Melee . | . . . . . Knockbacks . | . . . . . Impact . | . . . . . Kinetic . | . . . . . Secondary . | . . . . . Self-Inflicted Damage 189 | . 138 . . 51 Shots 4 | . 3 . . 1 Rammed . | . . . . . Targets Rammed . | . . . . . Kicked . | . . . . . Crushed . | . . . . . Highest Temperature 398 | 90 398 7 . . Average Temperature 136 | 40 185 3 . . Received Heat Transfer 441 | . 357 84 . . Effects 7 | . 7 . . . Shutdowns 2 | . 2 . . . Interference 3 | . 3 . . . Damage (minor) 2 | . 2 . . . Siege Activations . | . . . . . Martial Activations . | . . . . . Shielding Activations . | . . . . . Robots Disrupted . | . . . . . Combat Hostiles . | . . . . . Robots Corrupted . | . . . . . Combat Hostiles . | . . . . . Parts Fried 4 | . 2 2 . . Impact Corruptions . | . . . . . Robots Melted . | . . . . . Combat Hostiles . | . . . . . Parts Melted 1 | . . . . 1 Heat Transferred 1156 | 185 731 . . 240 Parts Sabotaged . | . . . . . Parts Stolen . | . . . . . Parts Stripped . | . . . . . Power Chain Reactions 5 | . 5 . . . Alert | -11 -10 -10 -10 -9 ------- Run | Yrd Mat Min Exi Min Maximum Alert Level . | . . . . . Low Security (%) 100 | 100 100 100 . . Level 1 . | . . . . . Level 2 . | . . . . . Level 3 . | . . . . . Level 4 . | . . . . . Level 5 . | . . . . . High Security . | . . . . . Max Security . | . . . . . Peak Influence 92 | 10 92 33 . . Initial 33 | . . 33 . . Average 26 | 1 29 13 . . Influence Increases 594 | 10 474 50 . 60 Destroy 0b10 Robot/C 340 | . 260 40 . 40 Destroy 0b10 Robot/NC 55 | 10 45 . . . Destroy Leader 86 | . 66 10 . 10 Disable Machine 45 | . 45 . . . Destroy Structure 38 | . 28 . . 10 Lose Combat Pursuer 30 | . 30 . . . Influence Decreases 534 | 10 388 126 10 . Entered New Map 63 | . . 53 10 . Time Decay 370 | 10 297 63 . . Lost Part 45 | . 35 10 . . Purge Threat 56 | . 56 . . . Squads Dispatched 3 | . 3 . . . Investigation 2 | . 2 . . . Extermination . | . . . . . Reinforcement 1 | . 1 . . . Assault . | . . . . . Garrison . | . . . . . Intercept . | . . . . . Searches Triggered . | . . . . . Construction Impeded . | . . . . . Haulers Reinforced . | . . . . . Active Scanning Responses . | . . . . . Cargo Convoy Interrupts . | . . . . . Stealth | -11 -10 -10 -10 -9 --------- Run | Yrd Mat Min Exi Min Distress Signals 1 | . 1 . . . Communications Jammed . | . . . . . Distress Signals . | . . . . . Times Spotted 25 | . 23 2 . . Peak Tracking Total 4 | . 4 2 . . Tactical Retreats 2 | . 2 . . . Traps | -11 -10 -10 -10 -9 ------- Run | Yrd Mat Min Exi Min Traps Triggered 2 | . 2 . . . Indirectly . | . . . . . Trap Hack Attempts . | . . . . . Triggered . | . . . . . Disarmed . | . . . . . Reprogrammed . | . . . . . Reused . | . . . . . Traps Extracted . | . . . . . Installed . | . . . . . Triggered . | . . . . . Machines | -11 -10 -10 -10 -9 ---------- Run | Yrd Mat Min Exi Min Machines Disabled 3 | . 3 . . . Max in Single Turn 2 | . 2 . . . Machines Repaired . | . . . . . Machines Dismantled . | . . . . . Machines Sabotaged . | . . . . . Overloaded Fab Kills . | . . . . . Hacking | -11 -10 -10 -10 -9 --------- Run | Yrd Mat Min Exi Min Machines Accessed 3 | . 2 . 1 . Terminals 2 | . 2 . . . Fabricators . | . . . . . Repair Stations . | . . . . . Recycling Units . | . . . . . Scanalyzers . | . . . . . Garrison Access . | . . . . . Total Hacks 5 | . 4 . 1 . Successful 2 | . 1 . 1 . Failed 3 | . 3 . . . Catastrophic 2 | . 2 . . . Database Lockouts . | . . . . . Manual 1 | . . . 1 . Terminals 4 | . 4 . . . Fabricators . | . . . . . Repair Stations . | . . . . . Recycling Units . | . . . . . Scanalyzers . | . . . . . Garrison Access . | . . . . . Terminal Hacks 2 | . 1 . 1 . Unreport Threat 1 | . 1 . . . Proto ID Catalog 1 | . . . 1 . Fabricator Hacks . | . . . . . Repair Station Hacks . | . . . . . Recycling Unit Hacks . | . . . . . Scanalyzer . | . . . . . Garrison Access Hacks . | . . . . . Unauthorized Hacks . | . . . . . Terminals . | . . . . . Fabricators . | . . . . . Repair Stations . | . . . . . Recycling Units . | . . . . . Scanalyzers . | . . . . . Garrison Access . | . . . . . Data Cores Recovered . | . . . . . Used . | . . . . . Hacking Detections 2 | . 2 . . . Full Trace Events 1 | . 1 . . . Feedback Events . | . . . . . Feedback Blocked . | . . . . . Robot Schematics Acquired . | . . . . . Robots Built . | . . . . . Authchips . | . . . . . Time . | . . . . . Total Robot Build Rating . | . . . . . Part Schematics Acquired . | . . . . . Parts Built . | . . . . . Authchips . | . . . . . Time . | . . . . . Total Part Build Rating . | . . . . . Parts Repaired . | . . . . . Time . | . . . . . Parts Recycled . | . . . . . Recycled Matter . | . . . . . Retrieved Matter . | . . . . . Retrieved Components . | . . . . . Parts Scanalyzed . | . . . . . Part Schematics Acquired . | . . . . . Parts Damaged . | . . . . . Bothacking | -11 -10 -10 -10 -9 ------------ Run | Yrd Mat Min Exi Min Used RIF Installer . | . . . . . Robots Hacked . | . . . . . Non-combat . | . . . . . Combat . | . . . . . Robot Hacks Applied . | . . . . . Relay Couplers Released . | . . . . . Fabnet Peak Effective % . | . . . . . Robots Rewired . | . . . . . Allies Hacked . | . . . . . Hacks Repelled . | . . . . . Allies | -11 -10 -10 -10 -9 -------- Run | Yrd Mat Min Exi Min Total Allies . | . . . . . Largest Group . | . . . . . Highest-Rated Group . | . . . . . Highest-Rated Ally . | . . . . . Total Orders . | . . . . . Ally Attacks . | . . . . . Total Damage . | . . . . . Kills . | . . . . . Allies Corrupted . | . . . . . Allies Melted . | . . . . . Intel | -11 -10 -10 -10 -9 ------- Run | Yrd Mat Min Exi Min Active Infowar (turns) 779 | . 356 163 260 . Optics 779 | . 356 163 260 . Robot Analysis Total . | . . . . . Derelict Logs Recovered . | . . . . . Drone Launches . | . . . . . Drone Recoveries . | . . . . . Exploration | -11 -10 -10 -10 -9 ------------- Run | Yrd Mat Min Exi Min Turns Passed 1529 | 75 1031 163 260 . Spaces Moved 943 | 50 521 134 238 . Core 80 | 24 56 . . . Treads 386 | 26 360 . . . Legs . | . . . . . Wheels 477 | . 105 134 238 . Hover . | . . . . . Flight . | . . . . . Fastest Speed 50 | 50 100 100 100 . Average Speed 129 | 107 150 100 107 . Slowest Speed 200 | 160 200 100 115 . Overloaded Moves . | . . . . . Propulsion Burnouts . | . . . . . Robots Hopped . | . . . . . Potential Cave-ins . | . . . . . Cave-ins Triggered . | . . . . . Exploration Rate (%) 32 | 4 63 26 64 5 Regions Visited 4 Branch Regions 3 Pre-discovered Areas . | . . . . . Known Exits Taken . | . . . . . Unknown Exits Taken 4 | 1 1 1 1 . Scrap Searched . | . . . . . Spaces Dug . | . . . . . Terrain Destroyed 45 | . 29 . . 16 Melee . | . . . . . Projectile 1 | . . . . 1 AOE 44 | . 29 . . 15 Terrain Rammed . | . . . . . Walls Destroyed . | . . . . . Machines Disabled . | . . . . . Actions | -11 -10 -10 -10 -9 --------- Run | Yrd Mat Min Exi Min Total 1109 | 64 650 151 243 1 Wait 48 | . 38 10 . . Move 939 | 49 520 133 237 . Hop . | . . . . . Pick Up 20 | 6 11 . 3 . Fast Attach 1 | . 1 . . . Attach 14 | 5 7 1 1 . Detach . | . . . . . Swap . | . . . . . Drop 2 | . . . 2 . Fire 85 | 4 73 7 . 1 Melee . | . . . . . Ram . | . . . . . Kick . | . . . . . Crush . | . . . . . Escape Stasis . | . . . . . Rewire . | . . . . . Trap . | . . . . . Miscellaneous . | . . . . . Route ------- -11/Scrapyard -10/Materials -10/Mines (discovered 2 exits: [*Mat] / *Exi) -10/Exiles (discovered 2 exits: [*Min x2]) -9/Mines History --------- Turn | Location | Event 15 | -11/Scrapyard | Discovered new exit (range 16) 76 | -11/Scrapyard | Entered Materials 241 | -10/Materials | Discovered new exit (range 15) 320 | -10/Materials | Lost 3 parts (1p2w) 325 | -10/Materials | Build established: Mutant 332 | -10/Materials | Core integrity fell below 50% 1107 | -10/Materials | Entered Mines 1203 | -10/Mines | Discovered new exit (range 13) 1221 | -10/Mines | Core integrity fell below 20% 1266 | -10/Mines | Deemed a non-threat by the Exiles lab entrance 1266 | -10/Mines | Discovered new exit (range 5) 1270 | -10/Mines | Entered Exiles 1271 | -10/Exiles | Build established: Scavenger-Mutant 1285 | -10/Exiles | Discovered new exit (range 17) 1297 | -10/Exiles | Met 8R-AWN 1312 | -10/Exiles | Met EX-HEX 1339 | -10/Exiles | Met EX-BIN 1357 | -10/Exiles | Aligned with FarCom system 1358 | -10/Exiles | Given EX-Vault access code 1381 | -10/Exiles | Opened EX-Vault 1390 | -10/Exiles | Found YOLO Cannon 1418 | -10/Exiles | Warned to stay clear of 0b10 Research branches 1450 | -10/Exiles | Met EX-DEC 1510 | -10/Exiles | Discovered new exit (range 15) 1530 | -10/Exiles | Left Exiles lab with YOLO Cannon 1530 | -10/Exiles | Entered Mines 1530 | -9/Mines | Destroyed self with YOLO Cannon Last Messages --------------- will continue to maintain contact via our distributed network. EX-BIN: And don't even think about spreading that code around. We're gonna change it right after you leave. Most certainly not to something like 1234 which I did last time as a little joke and some thief managed to sneak in here and steal a few of HEX's prototypes. EX-DEC: Ah I see we have a visitor. One wrong move in here and I'll invert your atomic chain! EX-DEC: "Oops, I hope HEX didn't hear that..." DI,YLV8NWL>Z>/:OI>D&BNLEENZEA EXIT=FOUND LOCATION=UNKNOWN GOAL=ESCAPE Receiving FarCom transmissions... Flight Unit melted. S-10 Pest destroyed. Destroyed Flight Unit. Map ----- +----------------------------------------------------+ | ?????????????????????????????? | | ?????????????????????????????? | | ?????????????????????????????? | | ?????????????????????????????? | | ?????????????????????????????? | | ?????????????????????????????? | | ?????????????????????????????? | | ?????????????????????????????? | | ?????????????????????????????? | | ?????????????????????????????? | | ?????????????????????????????? | | ?????????????????????????????? | | ?????????????????????????????? | | ?????????????????????????????? | | ?????????????????????????????? | | ?????????????????????????????? | | ?????????????????????????????? | | ???????????????????##????????? | | ???????????????????? ???????? | | ????????????????????? ???????? | | ?????????????????????#$??????? | | ????????????????###### ######? | | ????????????????# #? | | ????????????????# #? | | ????????????????# """ ;? | | ???????????????#T """ @s ; | | ????????????????# """ %= | | ????????????????# %= ; | | ????????????????# [ | | ????????????????# ; | | ????????????????#########;;;;? | | ????????????????????????#####? | | ?????????????????????????????? | | ?????????????????????????????? | | ?????????????????????????????? | | ?????????????????????????????? | | ?????????????????????????????? | | ?????????????????????????????? | | ?????????????????????????????? | | ?????????????????????????????? | | ?????????????????????????????? | | ?????????????????????????????? | | ?????????????????????????????? | | ?????????????????????????????? | | ?????????????????????????????? | | ?????????????????????????????? | | ?????????????????????????????? | | ?????????????????????????????? | | ?????????????????????????????? | | ?????????????????????????????? | +----------------------------------------------------+ Best States ------------- Heat Dissipation 39 Energy Generation 10 Energy Capacity 250 Matter Stores 300 Matter Capacity 300 Sight Range 18 Terrain Scan Density 10 Evasion (%) 50 Recoil Reduction 2 Item Schematics ----------------- None Robot Schematics ------------------ None Fabricated ------------ Nothing Repaired ---------- Nothing Alien Tech Used ----------------- None Achievements -------------- None Challenges ------------ None Game ------ Seed AlphaFusionRailgun Manual? 0 Play Time 00:10:56 Cumulative 48.5 hours Start 2025.07.14 @ 12:49:43 End 2025.07.14 @ 17:01:50 Sessions 1 Manual Loads 0 Difficulty Rogue Special Mode None Game No. 227 Rogue 227 Adventurer 0 Explorer 0 Win Type - Total 0 Types 0/0/0/0/0/0/0/0/0/0 Lore% 32 Gallery% 27 Achievement% 23 Wizard Run 0 Options --------- Layout 2 ASCII 0 Keyboard 0 Movement Mouse Keybinds 0 Fullscreen 1 Font 24/Smallcaps Map View 50x44 Zoom Use 0% Tactical HUD 0 Map Filters NONE Filters NONE Steam 1 RUN: a60aa8bb-2ef7-4f52-9322-2053abb74590